fUSD/lending_fUSD_20240319
["ID","MTS","AMOUNT","RATE_DAILY","PERIOD"]
[319580309,1710881450430,-151.0,0.00030136,7]
[319580310,1710881450441,-500.0,0.00030136,2]
[319580311,1710881450450,-2035.59,0.00030136,2]
[319580312,1710881450459,-1743.29,0.00030136,2]
[319580313,1710881450468,-500.0,0.00030136,2]
[319580314,1710881450478,-3052.41,0.00030136,2]
[319580315,1710881450488,-500.0,0.00030136,2]
[319580316,1710881450497,-1202.98,0.00030136,2]
[319580317,1710881450508,-500.0,0.00030136,2]
[319580318,1710881450517,-500.0,0.00030136,2]
[319580319,1710881450527,-549.09,0.00030136,2]
[319580320,1710881450536,-500.0,0.00030136,2]
[319580321,1710881450546,-500.0,0.00030136,2]
[319580322,1710881450555,-500.0,0.00030136,2]
[319580323,1710881450565,-324.651821,0.00030136,7]
[319580324,1710881450574,-324.651821,0.00030136,7]
[319580325,1710881450584,-324.651821,0.00030136,7]
[319580326,1710881450594,-500.0,0.00030136,2]
[319580327,1710881450604,-151.0,0.00030136,7]
[319580328,1710881450613,-151.0,0.00030136,7]
[319580329,1710881450622,-551.74669477,0.00030136,2]
[319580330,1710881450632,-151.0,0.00030136,7]
[319580331,1710881450641,-523.78,0.00030136,2]
[319580332,1710881450650,-151.0,0.00030136,7]
[319580333,1710881450660,-151.0,0.00030136,7]
[319580334,1710881450670,-151.0,0.00030136,7]
[319580335,1710881450679,-324.651821,0.00030136,7]
[319580336,1710881450688,-324.651821,0.00030136,7]
[319580337,1710881450698,-324.651821,0.00030136,7]
[319580338,1710881450708,-705.54,0.00030136,2]
[319580339,1710881450717,-1525.12,0.00030136,2]
[319580340,1710881450727,-151.0,0.00030136,7]
[319580341,1710881450736,-500.0,0.00030136,2]
[319580342,1710881450746,-500.0,0.00030136,2]
[319580343,1710881450755,-324.651821,0.00030136,7]
[319580344,1710881450765,-151.0,0.00030136,7]
[319580345,1710881450774,-324.651821,0.00030136,7]
[319580346,1710881450784,-151.0,0.00030136,7]
[319580347,1710881450794,-500.0,0.00030136,2]
[319580348,1710881450804,-324.651821,0.00030136,7]
[319580349,1710881450813,-151.0,0.00030136,7]
[319580350,1710881450823,-324.651821,0.00030136,7]
[319580351,1710881450833,-151.0,0.00030136,7]
[319580352,1710881450844,-324.651821,0.00030136,7]
[319580353,1710881450853,-151.0,0.00030136,7]
[319580354,1710881450863,-324.651821,0.00030136,7]
[319580355,1710881450873,-1273.681869,0.00030136,7]
[319580356,1710881450882,-1273.681869,0.00030136,7]
[319580357,1710881450891,-1273.681869,0.00030136,7]
[319580358,1710881450902,-1377.25,0.00030136,2]
[319580359,1710881450911,-1273.681869,0.00030136,7]
[319580360,1710881450923,-1273.681869,0.00030136,7]
[319580361,1710881450933,-1273.681869,0.00030136,7]
[319580362,1710881450942,-500.0,0.00030136,2]
[319580363,1710881450952,-1273.681869,0.00030136,7]
[319580364,1710881450961,-781.26,0.00030136,2]
[319580365,1710881450971,-1273.681869,0.00030136,7]
[319580366,1710881450981,-398.114035,0.00030136,7]
[319580367,1710881450991,-398.114035,0.00030136,7]
[319580368,1710881451000,-1273.681869,0.00030136,7]
[319580369,1710881451010,-398.114035,0.00030136,7]
[319580370,1710881451020,-500.0,0.00030136,2]
[319580371,1710881451029,-486.48583907,0.00030136,2]
[319580372,1710881451039,-1273.681869,0.00030136,7]
[319580373,1710881451048,-2920.99,0.00030136,2]
[319580374,1710881451058,-398.114035,0.00030136,7]
[319580375,1710881451067,-398.114035,0.00030136,7]
[319580376,1710881451172,-398.114035,0.00030136,7]
[319580377,1710881451182,-1273.681869,0.00030136,7]
[319580378,1710881451196,-1273.681869,0.00030136,7]
[319580379,1710881451206,-500.0,0.00030136,2]
[319580380,1710881451216,-398.114035,0.00030136,7]
[319580381,1710881451226,-165.894789,0.00030136,7]
[319580382,1710881451235,-398.114035,0.00030136,7]
[319580383,1710881451245,-165.894789,0.00030136,7]
[319580384,1710881451255,-398.114035,0.00030136,7]
[319580385,1710881451265,-165.894789,0.00030136,7]
[319580386,1710881451274,-500.0,0.00030136,2]
[319580387,1710881451284,-398.114035,0.00030136,7]
[319580388,1710881451294,-165.894789,0.00030136,7]
[319580389,1710881451303,-398.114035,0.00030136,7]
[319580390,1710881451313,-165.894789,0.00030136,7]
[319580391,1710881451322,-398.114035,0.00030136,7]
[319580392,1710881451332,-165.894789,0.00030136,7]
[319580393,1710881451342,-3512.78,0.00030136,2]
[319580394,1710881451351,-165.894789,0.00030136,7]
[319580395,1710881451362,-165.894789,0.00030136,7]
[319580396,1710881451371,-165.894789,0.00030136,7]
[319580397,1710881451380,-165.894789,0.00030136,7]
[319580398,1710881451390,-165.894789,0.00030136,7]
[319580399,1710881451399,-165.894789,0.00030136,7]
[319580400,1710881451411,-2681.32,0.00030136,2]
[319580401,1710881451422,-500.0,0.00030136,2]
[319580402,1710881451431,-3812.88,0.00030136,2]
[319580403,1710881451441,-500.0,0.00030136,2]
[319580404,1710881451450,-500.0,0.00030136,2]
[319580405,1710881451462,-2685.54552,0.00030136,7]
[319580406,1710881451471,-2685.54552,0.00030136,7]
[319580407,1710881451481,-1684.02,0.00030136,2]
[319580408,1710881451491,-2685.54552,0.00030136,7]
[319580409,1710881451500,-399.255426,0.00030136,7]
[319580410,1710881451510,-2685.54552,0.00030136,7]
[319580411,1710881451519,-2685.54552,0.00030136,7]
[319580412,1710881451528,-500.0,0.00030136,2]
[319580413,1710881451538,-1371.22,0.00030136,2]
[319580414,1710881451547,-2685.54552,0.00030136,7]
[319580415,1710881451557,-399.255426,0.00030136,7]
[319580416,1710881451567,-399.255426,0.00030136,7]
[319580417,1710881451576,-399.255426,0.00030136,7]
[319580418,1710881451585,-399.255426,0.00030136,7]
[319580419,1710881451595,-500.0,0.00030136,2]
[319580420,1710881451604,-399.255426,0.00030136,7]
[319580421,1710881451614,-2685.54552,0.00030136,7]
[319580422,1710881451628,-2685.54552,0.00030136,7]
[319580423,1710881451638,-2685.54552,0.00030136,7]
[319580424,1710881451647,-2685.54552,0.00030136,7]
[319580425,1710881451658,-3426.25,0.00030136,2]
[319580426,1710881451668,-2685.54552,0.00030136,7]
[319580427,1710881451679,-500.0,0.00030136,2]
[319580428,1710881451689,-399.255426,0.00030136,7]
[319580429,1710881451699,-2685.54552,0.00030136,7]
[319580430,1710881451709,-399.255426,0.00030136,7]
[319580431,1710881451719,-399.255426,0.00030136,7]
[319580432,1710881451728,-399.255426,0.00030136,7]
[319580433,1710881451739,-399.255426,0.00030136,7]
[319580434,1710881451749,-500.0,0.00030136,2]
[319580435,1710881451759,-399.255426,0.00030136,7]
[319580436,1710881451769,-41716.8,0.00030136,2]
[319580437,1710881451778,-500.0,0.00030136,2]
[319580438,1710881451788,-1140.71,0.00030136,2]
[319580439,1710881451797,-151.0,0.00030136,7]
[319580440,1710881451807,-500.0,0.00030136,2]
[319580441,1710881451817,-151.0,0.00030136,7]
[319580442,1710881451826,-151.0,0.00030136,7]
[319580443,1710881451836,-151.0,0.00030136,7]
[319580444,1710881451845,-2032.46,0.00030136,2]
[319580445,1710881451855,-151.0,0.00030136,7]
[319580446,1710881451865,-151.0,0.00030136,7]
[319580447,1710881451874,-151.0,0.00030136,7]
[319580448,1710881451884,-568.76,0.00030136,2]
[319580449,1710881451893,-151.0,0.00030136,7]
[319580450,1710881451906,-151.0,0.00030136,7]
[319580451,1710881451916,-151.0,0.00030136,7]
[319580452,1710881451927,-151.0,0.00030136,7]
[319580453,1710881451936,-502.93,0.00030136,2]
[319580454,1710881451945,-151.0,0.00030136,7]
[319580455,1710881451955,-500.0,0.00030136,2]
[319580456,1710881451965,-500.0,0.00030136,2]
[319580457,1710881451974,-500.0,0.00030136,2]
[319580458,1710881451984,-696.75,0.00030136,2]
[319580459,1710881451994,-500.0,0.00030136,2]
[319580460,1710881452004,-925.78,0.00030136,2]
[319580461,1710881452014,-984.43,0.00030136,2]
[319580462,1710881452023,-574.15221487,0.00030136,2]
[319580463,1710881452033,-588.05,0.00030136,2]
[319580464,1710881452044,-151.0,0.00030136,7]
[319580465,1710881452056,-151.0,0.00030136,7]
[319580466,1710881452065,-501.46737608,0.00030136,2]
[319580467,1710881452074,-151.0,0.00030136,7]
[319580468,1710881452083,-151.0,0.00030136,7]
[319580469,1710881452092,-151.0,0.00030136,7]
[319580470,1710881452102,-151.0,0.00030136,7]
[319580471,1710881452111,-500.0,0.00030136,2]
[319580472,1710881452120,-526.24,0.00030136,2]
[319580473,1710881452130,-151.0,0.00030136,7]
[319580474,1710881452139,-151.0,0.00030136,7]
[319580475,1710881452148,-229.17365,0.00030136,7]
[319580476,1710881452158,-5409.57,0.00030136,2]
[319580477,1710881452168,-473.44643493,0.00030136,2]
[319580478,1710881452181,-1480.03,0.00030136,2]
[319580479,1710881452191,-609.55,0.00030136,2]
[319580480,1710881452200,-3345.1,0.00030136,2]
[319580481,1710881452209,-151.0,0.00030136,7]
[319580482,1710881452219,-151.0,0.00030136,7]
[319580483,1710881452229,-151.306133,0.00030136,7]
[319580484,1710881452239,-502.04400335,0.00030136,2]
[319580485,1710881452249,-1954.98,0.00030136,2]
[319580486,1710881452258,-760.3,0.00030136,2]
[319580487,1710881452268,-500.0,0.00030136,2]
[319580488,1710881452278,-500.0,0.00030136,2]
[319580489,1710881452288,-500.0,0.00030136,2]
[319580490,1710881452297,-500.0,0.00030136,2]
[319580491,1710881452306,-1047.5,0.00030136,2]
[319580492,1710881452316,-3318.19,0.00030136,2]
[319580493,1710881452325,-500.0,0.00030136,2]
[319580494,1710881452335,-500.0,0.00030136,2]
[319580495,1710881452345,-500.0,0.00030136,2]
[319580496,1710881452355,-151.0,0.00030136,7]
[319580497,1710881452364,-151.342715,0.00030136,7]
[319580498,1710881452374,-560.4,0.00030136,2]
[319580499,1710881452384,-500.0,0.00030136,2]
[319580500,1710881452394,-500.0,0.00030136,2]
[319580501,1710881452404,-500.0,0.00030136,2]
[319580502,1710881452423,-187.9566,0.00030136,7]
[319580503,1710881452433,-612.25,0.00030136,2]
[319580504,1710881452443,-187.9566,0.00030136,7]
[319580505,1710881452452,-187.9566,0.00030136,7]
[319580506,1710881452463,-500.0,0.00030136,2]
[319580507,1710881452472,-187.9566,0.00030136,7]
[319580508,1710881452481,-187.9566,0.00030136,7]
[319580509,1710881452491,-187.9566,0.00030136,7]
[319580510,1710881452501,-3136.96,0.00030136,2]
[319580511,1710881452510,-187.9566,0.00030136,7]
[319580512,1710881452519,-187.9566,0.00030136,7]
[319580513,1710881452529,-3674.95,0.00030136,2]
[319580514,1710881452538,-187.9566,0.00030136,7]
[319580515,1710881452548,-500.0,0.00030136,2]
[319580516,1710881452557,-500.0,0.00030136,2]
[319580517,1710881452567,-187.9566,0.00030136,7]
[319580518,1710881452576,-2034.06,0.00030136,2]
[319580519,1710881452585,-187.9566,0.00030136,7]
[319580520,1710881452595,-187.9566,0.00030136,7]
[319580521,1710881452604,-500.0,0.00030136,2]
[319580522,1710881452613,-500.0,0.00030136,2]
[319580523,1710881452623,-500.0,0.00030136,2]
[319580524,1710881452632,-500.0,0.00030136,2]
[319580525,1710881452641,-698.17,0.00030136,2]
[319580526,1710881452650,-500.0,0.00030136,2]
[319580527,1710881452660,-778.16,0.00030136,2]
[319580528,1710881452669,-831.76,0.00030136,2]
[319580529,1710881452680,-682.7,0.00030136,2]
[319580530,1710881452690,-1779.03,0.00030136,2]
[319580531,1710881452699,-1229.68,0.00030136,2]
[319580532,1710881452709,-500.0,0.00030136,2]
[319580533,1710881452718,-500.0,0.00030136,2]
[319580534,1710881452738,-500.0,0.00030136,2]
[319580535,1710881452749,-500.0,0.00030136,2]
[319580536,1710881452758,-1086.59,0.00030136,2]
[319580537,1710881452768,-500.0,0.00030136,2]
[319580538,1710881452778,-2133.2,0.00030136,2]
[319580539,1710881452788,-820.91,0.00030136,2]
[319580540,1710881452798,-500.0,0.00030136,2]
[319580541,1710881452811,-500.0,0.00030136,2]
[319580542,1710881452821,-151.0,0.00030136,7]
[319580543,1710881452831,-619.19,0.00030136,2]
[319580544,1710881452841,-151.0,0.00030136,7]
[319580545,1710881452850,-974.2,0.00030136,2]
[319580546,1710881452860,-151.0,0.00030136,7]
[319580547,1710881452869,-151.0,0.00030136,7]
[319580548,1710881452879,-151.0,0.00030136,7]
[319580549,1710881452888,-151.0,0.00030136,7]
[319580550,1710881452898,-189.762637,0.00030136,7]
[319580551,1710881452907,-189.762637,0.00030136,7]
[319580552,1710881452916,-500.0,0.00030136,2]
[319580553,1710881452927,-500.0,0.00030136,2]
[319580554,1710881452937,-189.762637,0.00030136,7]
[319580555,1710881452946,-189.762637,0.00030136,7]
[319580556,1710881452955,-189.762637,0.00030136,7]
[319580557,1710881452965,-174.920146,0.00030136,7]
[319580558,1710881452974,-500.13,0.00030136,2]
[319580559,1710881452983,-189.762637,0.00030136,7]
[319580560,1710881452992,-508.51,0.00030136,2]
[319580561,1710881453002,-2843.1,0.00030136,2]
[319580562,1710881453011,-500.0,0.00030136,2]
[319580563,1710881453026,-3817.14,0.00030136,2]
[319580564,1710881453035,-151.0,0.00030136,7]
[319580565,1710881453045,-189.762637,0.00030136,7]
[319580566,1710881453054,-151.0,0.00030136,7]
[319580567,1710881453063,-189.762637,0.00030136,7]
[319580568,1710881453072,-151.0,0.00030136,7]
[319580569,1710881453081,-189.762637,0.00030136,7]
[319580570,1710881453090,-151.0,0.00030136,7]
[319580571,1710881453099,-189.762637,0.00030136,7]
[319580572,1710881453109,-151.0,0.00030136,7]
[319580573,1710881453118,-189.762637,0.00030136,7]
[319580574,1710881453127,-252.979879,0.00030136,7]
[319580575,1710881453137,-189.762637,0.00030136,7]
[319580576,1710881453146,-500.0,0.00030136,2]
[319580577,1710881453156,-497.16897173,0.00030136,2]
[319580578,1710881453165,-2344.09,0.00030136,2]
[319580579,1710881453175,-506.16,0.00030136,2]
[319580580,1710881453184,-397.80363496,0.00030136,2]
[319580581,1710881453194,-921.73,0.00030136,2]
[319580582,1710881453204,-625.43,0.00030136,2]
[319580583,1710881453213,-839.37,0.00030136,2]
[319580584,1710881453222,-500.0,0.00030136,2]
[319580585,1710881453231,-1695.31,0.00030136,2]
[319580586,1710881453240,-500.0,0.00030136,2]
[319580587,1710881453250,-201.56154,0.00030136,7]
[319580588,1710881453259,-201.56154,0.00030136,7]
[319580589,1710881453268,-2914.19,0.00030136,2]
[319580590,1710881453278,-201.56154,0.00030136,7]
[319580591,1710881453287,-201.56154,0.00030136,7]
[319580592,1710881453297,-201.56154,0.00030136,7]
[319580593,1710881453306,-201.56154,0.00030136,7]
[319580594,1710881453315,-352.10040798,0.00030136,2]
[319580595,1710881453324,-500.0,0.00030136,2]
[319580596,1710881453334,-500.0,0.00030136,2]
[319580597,1710881453343,-201.56154,0.00030136,7]
[319580598,1710881453353,-201.56154,0.00030136,7]
[319580599,1710881453362,-201.56154,0.00030136,7]
[319580600,1710881453372,-500.0,0.00030136,2]
[319580601,1710881453381,-201.56154,0.00030136,7]
[319580602,1710881453390,-201.56154,0.00030136,7]
[319580603,1710881453399,-201.56154,0.00030136,7]
[319580604,1710881453409,-500.0,0.00030136,2]
[319580605,1710881453418,-2276.57,0.00030136,2]
[319580606,1710881453429,-500.0,0.00030136,2]
[319580607,1710881453442,-500.0,0.00030136,2]
[319580608,1710881453452,-500.0,0.00030136,2]
[319580609,1710881453462,-239.94427426,0.00030136,2]
[319580610,1710881453471,-4668.81,0.00030136,2]
[319580611,1710881453480,-500.0,0.00030136,2]
[319580612,1710881453515,-500.0,0.00030136,2]
[319580613,1710881453549,-500.0,0.00030136,2]
[319580614,1710881453559,-3291.76,0.00030136,2]
[319580615,1710881453569,-500.0,0.00030136,2]
[319580616,1710881453579,-500.0,0.00030136,2]
[319580617,1710881453589,-3020.85,0.00030136,2]
[319580618,1710881453598,-536.16,0.00030136,2]
[319580619,1710881453607,-616.02,0.00030136,2]
[319580620,1710881453617,-500.0,0.00030136,2]
[319580621,1710881453626,-2601.54,0.00030136,2]
[319580622,1710881453636,-895.6,0.00030136,2]
[319580623,1710881453646,-942.52,0.00030136,2]
[319580624,1710881453655,-763.72,0.00030136,2]
[319580625,1710881453665,-500.0,0.00030136,2]
[319580626,1710881453677,-500.0,0.00030136,2]
[319580627,1710881453687,-500.0,0.00030136,2]
[319580628,1710881453696,-500.0,0.00030136,2]
[319580629,1710881453706,-470.704987,0.00030136,7]
[319580630,1710881453716,-470.704987,0.00030136,7]
[319580631,1710881453726,-470.704987,0.00030136,7]
[319580632,1710881453736,-2634.96,0.00030136,2]
[319580633,1710881453746,-500.0,0.00030136,2]
[319580634,1710881453756,-500.0,0.00030136,2]
[319580635,1710881453766,-500.0,0.00030136,2]
[319580636,1710881453777,-500.0,0.00030136,2]
[319580637,1710881453788,-3061.24,0.00030136,2]
[319580638,1710881453799,-500.0,0.00030136,2]
[319580639,1710881453809,-1140.6,0.00030136,2]
[319580640,1710881453820,-500.0,0.00030136,2]
[319580641,1710881453831,-500.0,0.00030136,2]
[319580642,1710881453842,-500.0,0.00030136,2]
[319580643,1710881453853,-500.0,0.00030136,2]
[319580644,1710881453865,-619.82,0.00030136,2]
[319580645,1710881453876,-585.64,0.00030136,2]
[319580646,1710881453886,-2104.14,0.00030136,2]
[319580647,1710881453897,-151.0,0.00030136,7]
[319580648,1710881453907,-500.0,0.00030136,2]
[319580649,1710881453917,-500.0,0.00030136,2]
[319580650,1710881453931,-151.0,0.00030136,7]
[319580651,1710881453940,-500.0,0.00030136,2]
[319580652,1710881453950,-151.0,0.00030136,7]
[319580653,1710881453960,-151.0,0.00030136,7]
[319580654,1710881453971,-500.0,0.00030136,2]
[319580655,1710881453981,-500.0,0.00030136,2]
[319580656,1710881453990,-500.0,0.00030136,2]
[319580657,1710881454000,-500.0,0.00030136,2]
[319580658,1710881454009,-246.931573,0.00030136,7]
[319580659,1710881454019,-265.29256254,0.00030136,2]
[319580660,1710881454029,-500.0,0.00030136,2]
[319580661,1710881454039,-500.0,0.00030136,2]
[319580662,1710881454049,-151.0,0.00030136,7]
[319580663,1710881454059,-151.0,0.00030136,7]
[319580664,1710881454068,-503.69058698,0.00030136,2]
[319580665,1710881454078,-151.0,0.00030136,7]
[319580666,1710881454088,-151.0,0.00030136,7]
[319580667,1710881454098,-151.0,0.00030136,7]
[319580668,1710881454107,-151.0,0.00030136,7]
[319580669,1710881454117,-559.96,0.00030136,2]
[319580670,1710881454127,-500.0,0.00030136,2]
[319580671,1710881454136,-151.0,0.00030136,7]
[319580672,1710881454146,-500.0,0.00030136,2]
[319580673,1710881454155,-500.0,0.00030136,2]
[319580674,1710881454165,-231.597856,0.00030136,7]
[319580675,1710881454178,-610.86538181,0.00030136,2]
[319580676,1710881454188,-649.59,0.00030136,2]
[319580677,1710881454197,-1495.67,0.00030136,2]
[319580678,1710881454207,-500.0,0.00030136,2]
[319580679,1710881454216,-1546.85,0.00030136,2]
[319580680,1710881454226,-500.0,0.00030136,2]
[319580681,1710881454235,-4434.0,0.00030136,2]
[319580682,1710881454245,-500.0,0.00030136,2]
[319580683,1710881454255,-500.0,0.00030136,2]
[319580684,1710881454265,-500.0,0.00030136,2]
[319580685,1710881454274,-29908.61,0.00030136,2]
[319580686,1710881454283,-990.75,0.00030136,2]
[319580687,1710881454293,-1174.86,0.00030136,2]
[319580688,1710881454302,-2776.49,0.00030136,2]
[319580689,1710881454311,-500.0,0.00030136,2]
[319580690,1710881454321,-500.0,0.00030136,2]
[319580691,1710881454330,-500.0,0.00030136,2]
[319580692,1710881454339,-2834.94,0.00030136,2]
[319580693,1710881454348,-1680.4,0.00030136,2]
[319580694,1710881454358,-2340.36,0.00030136,2]
[319580695,1710881454368,-1883.13,0.00030136,2]
[319580696,1710881454377,-500.0,0.00030136,2]
[319580697,1710881454387,-500.0,0.00030136,2]
[319580698,1710881454397,-1039.73,0.00030136,2]
[319580699,1710881454406,-500.0,0.00030136,2]
[319580700,1710881454420,-2649.93,0.00030136,2]
[319580701,1710881454434,-1562.08,0.00030136,2]
[319580702,1710881454444,-500.0,0.00030136,2]
[319580703,1710881454454,-647.98,0.00030136,2]
[319580704,1710881454464,-30252.01,0.00030136,2]
[319580705,1710881454473,-617.45,0.00030136,2]
[319580706,1710881454483,-5265.21,0.00030136,2]
[319580707,1710881454493,-5782.36,0.00030136,2]
[319580708,1710881454503,-2483.41,0.00030136,2]
[319580709,1710881454513,-500.0,0.00030136,2]
[319580710,1710881454523,-3351.58,0.00030136,2]
[319580711,1710881454532,-500.0,0.00030136,2]
[319580712,1710881454542,-625.0,0.00030136,2]
[319580713,1710881454551,-151.0,0.00030136,7]
[319580714,1710881454561,-500.0,0.00030136,2]
[319580715,1710881454571,-151.0,0.00030136,7]
[319580716,1710881454581,-271.99428191,0.00030136,2]
[319580717,1710881454591,-151.0,0.00030136,7]
[319580718,1710881454601,-3142.0,0.00030136,2]
[319580719,1710881454610,-3452.602006,0.00030136,7]
[319580720,1710881454620,-151.0,0.00030136,7]
[319580721,1710881454630,-151.0,0.00030136,7]
[319580722,1710881454639,-3452.602006,0.00030136,7]
[319580723,1710881454649,-151.0,0.00030136,7]
[319580724,1710881454659,-3452.602006,0.00030136,7]
[319580725,1710881454668,-3452.602006,0.00030136,7]
[319580726,1710881454682,-514.99,0.00030136,2]
[319580727,1710881454692,-3452.602006,0.00030136,7]
[319580728,1710881454701,-3452.602006,0.00030136,7]
[319580729,1710881454710,-151.0,0.00030136,7]
[319580730,1710881454720,-151.0,0.00030136,7]
[319580731,1710881454729,-399.453969,0.00030136,7]
[319580732,1710881454739,-500.0,0.00030136,2]
[319580733,1710881454749,-151.0,0.00030136,7]
[319580734,1710881454758,-399.453969,0.00030136,7]
[319580735,1710881454768,-3452.602006,0.00030136,7]
[319580736,1710881454778,-200.694755,0.00030136,7]
[319580737,1710881454787,-399.453969,0.00030136,7]
[319580738,1710881454797,-3452.602006,0.00030136,7]
[319580739,1710881454808,-399.453969,0.00030136,7]
[319580740,1710881454818,-3452.602006,0.00030136,7]
[319580741,1710881454828,-500.0,0.00030136,2]
[319580742,1710881454838,-399.453969,0.00030136,7]
[319580743,1710881454848,-3452.602006,0.00030136,7]
[319580744,1710881454858,-399.453969,0.00030136,7]
[319580745,1710881454868,-29094.89,0.00030136,2]
[319580746,1710881454878,-3452.602006,0.00030136,7]
[319580747,1710881454887,-500.0,0.00030136,2]
[319580748,1710881454897,-3452.602006,0.00030136,7]
[319580749,1710881454907,-500.0,0.00030136,2]
[319580750,1710881454917,-399.453969,0.00030136,7]
[319580751,1710881454933,-399.453969,0.00030136,7]
[319580752,1710881454943,-399.453969,0.00030136,7]
[319580753,1710881454953,-500.0,0.00030136,2]
[319580754,1710881454963,-399.453969,0.00030136,7]
[319580755,1710881454973,-399.453969,0.00030136,7]
[319580756,1710881454984,-399.453969,0.00030136,7]
[319580757,1710881454994,-502.45530739,0.00030136,2]
[319580758,1710881455005,-500.0,0.00030136,2]
[319580759,1710881455015,-500.0,0.00030136,2]
[319580760,1710881455026,-12392.75,0.00030136,2]
[319580761,1710881455035,-4741.54,0.00030136,2]
[319580762,1710881455045,-500.0,0.00030136,2]
[319580763,1710881455055,-500.0,0.00030136,2]
[319580764,1710881455065,-830.04,0.00030136,2]
[319580765,1710881455075,-500.0,0.00030136,2]
[319580766,1710881455085,-500.0,0.00030136,2]
[319580767,1710881455094,-549.19,0.00030136,2]
[319580768,1710881455104,-3717.168607,0.00030136,7]
[319580769,1710881455114,-3717.168607,0.00030136,7]
[319580770,1710881455124,-2505.44,0.00030136,2]
[319580771,1710881455134,-500.0,0.00030136,2]
[319580772,1710881455144,-3717.168607,0.00030136,7]
[319580773,1710881455154,-500.0,0.00030136,2]
[319580774,1710881455164,-3717.168607,0.00030136,7]
[319580775,1710881455176,-3717.168607,0.00030136,7]
[319580776,1710881455186,-3717.168607,0.00030136,7]
[319580777,1710881455196,-250.241438,0.00030136,7]
[319580778,1710881455206,-250.241438,0.00030136,7]
[319580779,1710881455216,-531.96,0.00030136,2]
[319580780,1710881455226,-250.241438,0.00030136,7]
[319580781,1710881455238,-500.0,0.00030136,2]
[319580782,1710881455248,-250.241438,0.00030136,7]
[319580783,1710881455259,-246.68477906,0.00030136,2]
[319580784,1710881455269,-250.241438,0.00030136,7]
[319580785,1710881455280,-3717.168607,0.00030136,7]
[319580786,1710881455291,-250.241438,0.00030136,7]
[319580787,1710881455301,-500.0,0.00030136,2]
[319580788,1710881455311,-3717.168607,0.00030136,7]
[319580789,1710881455321,-13957.34,0.00030136,2]
[319580790,1710881455331,-3717.168607,0.00030136,7]
[319580791,1710881455341,-3717.168607,0.00030136,7]
[319580792,1710881455351,-3717.168607,0.00030136,7]
[319580793,1710881455361,-500.0,0.00030136,2]
[319580794,1710881455371,-3717.168607,0.00030136,7]
[319580795,1710881455381,-500.0,0.00030136,2]
[319580796,1710881455391,-250.241438,0.00030136,7]
[319580797,1710881455401,-250.241438,0.00030136,7]
[319580798,1710881455411,-250.241438,0.00030136,7]
[319580799,1710881455421,-250.241438,0.00030136,7]
[319580800,1710881455435,-250.241438,0.00030136,7]
[319580801,1710881455445,-500.0,0.00030136,2]
[319580802,1710881455455,-8783.16,0.00030136,2]
[319580803,1710881455465,-250.241438,0.00030136,7]
[319580804,1710881455477,-24479.15,0.00030136,2]
[319580805,1710881455487,-1056.05,0.00030136,2]
[319580806,1710881455497,-713.48,0.00030136,2]
[319580807,1710881455508,-500.0,0.00030136,2]
[319580808,1710881455518,-500.0,0.00030136,2]